[Event "XV Closed IM BCC 2021"]
[Site "Barcelona"]
[Date "2021.05.07"]
[Round "5.4"]
[White "Garcia Ramos, Daniel"]
[Black "Perez Mitjans, Orelvis"]
[Result "1/2-1/2"]
[ECO "A10"]
[WhiteElo "2436"]
[BlackElo "2412"]
[Annotator "NA"]
[PlyCount "41"]
[EventDate "2021.05.03"]
[EventType "tourn"]
[EventCountry "ESP"]
[SourceTitle "playchess.com"]
[Source "ChessBase"]
[SourceQuality "1"]
[TimeControl "5400+30"]

1. c4 g6 2. Nf3 Nf6 3. g3 Bg7 4. Bg2 O-O 5. O-O d5 6. cxd5 Nxd5 7. Nc3 c5 8. d4 cxd4 9. Nxd4 Nxc3 10. bxc3 Nd7 11. Rb1 Rb8 12. Qa4 a6 13. Ba3 Ne5 14. Qb4 Bf6 15. f4 Ng4 16. Rf3 Bxd4+ 17. Qxd4 Bf5 18. Rb6 Be4 19. h3 Bxf3 20. Bxf3 Nf6 21. Rxb7 1/2-1/2

[Event "XV Closed IM BCC 2021"]
[Site "Barcelona"]
[Date "2021.05.07"]
[Round "5.5"]
[White "Hernandez, Cristian Andres"]
[Black "Valenzuela Gomez, Fernando"]
[Result "1/2-1/2"]
[ECO "B69"]
[WhiteElo "2357"]
[BlackElo "2382"]
[Annotator "NA"]
[PlyCount "73"]
[EventDate "2021.05.03"]
[EventType "tourn"]
[EventCountry "ESP"]
[SourceTitle "playchess.com"]
[Source "ChessBase"]
[SourceQuality "1"]
[TimeControl "5400+30"]

1. e4 {[%emt 0:06:15]} c5 {[%emt 0:00:00]} 2. Nc3 {[%emt 0:01:14]} Nc6 {[%emt 0:00:00]} 3. Nf3 {[%emt 0:00:20]} d6 {[%emt 0:01:05]} 4. d4 {[%emt 0:00:56]} cxd4 {[%emt 0:00:06]} 5. Nxd4 {[%emt 0:00:04]} Nf6 {[%emt 0:00:11]} 6. Bg5 {[%emt 0:03:06]} e6 {[%emt 0:01:17]} 7. Qd2 {[%emt 0:03:34]} a6 {[%emt 0:00:56]} 8. O-O-O {[%emt 0:01:03]} Bd7 {[%emt 0:01:36]} 9. f4 {[%emt 0:03:59]} Be7 {[%emt 0:01:57]} 10. Nf3 {[%emt 0:04:07]} b5 {[%emt 0:00:53]} 11. Bxf6 {[%emt 0:00:44]} gxf6 {[%emt 0:00:51]} 12. f5 {[%emt 0:02:59]} Qb6 {[%emt 0:00:58]} 13. Kb1 {[%emt 0:19:50]} O-O-O {[%emt 0:01:53]} 14. Bd3 {[%emt 0:13:04]} Kb8 {[%emt 0:02:43]} 15. Ne2 {[%emt 0:00:31]} Rc8 {[%emt 0:12:22]} 16. Nf4 {[%emt 0:08:44]} Ka7 {[%emt 0:08:14]} 17. Rhe1 {[%emt 0:03:44]} Qc5 {[%emt 0:10:43]} 18. Bf1 {[%emt 0:04:31]} Rhe8 {[%emt 0:06:03]} 19. fxe6 {[%emt 0:10:18]} fxe6 {[%emt 0:00:12]} 20. e5 {[%emt 0:00:21]} Nxe5 {[%emt 0:21:17]} 21. Nxe5 {[%emt 0:00:05]} fxe5 {[%emt 0:00:25]} 22. Nd3 {[%emt 0:00:05]} Qc7 {[%emt 0:02:11]} 23. Nxe5 {[%emt 0:00:15]} Bf8 {[%emt 0:01:52]} 24. Qd4+ {[%emt 0:06:05]} Kb8 {[%emt 0:01:28]} 25. Nxd7+ {[%emt 0:00:12]} Qxd7 {[%emt 0:00:04]} 26. Bd3 {[%emt 0:03:15]} Rc5 {[%emt 0:04:24]} 27. Qh4 {[%emt 0:00:50]} h5 {[%emt 0:01:18]} 28. Bg6 {[%emt 0:00:25]} Rec8 {[%emt 0:00:19]} 29. Qf6 {[%emt 0:00:34]} Qc6 {[%emt 0:03:19]} 30. Qxe6 {[%emt 0:00:39]} Qxg2 {[%emt 0:00:58]} 31. Be4 {[%emt 0:00:50]} Qf2 {[%emt 0:02:23]} 32. Rf1 {[%emt 0:01:00]} Qe2 {[%emt 0:02:00]} 33. Rde1 {[%emt 0:00:09]} Qd2 {[%emt 0:00:31]} 34. Rd1 {[%emt 0:01:21]} Qe2 {[%emt 0:00:22]} 35. Rfe1 {[%emt 0:00:26]} Qf2 {[%emt 0:00:21]} 36. Rf1 Qe2 37. a3 1/2-1/2

[Event "XV Closed IM BCC 2021"]
[Site "Barcelona"]
[Date "2021.05.09"]
[Round "6.1"]
[White "Nottola, Adrien"]
[Black "Valenzuela Gomez, Fernando"]
[Result "1-0"]
[ECO "B67"]
[WhiteElo "2101"]
[BlackElo "2382"]
[Annotator "NA"]
[PlyCount "113"]
[EventDate "2021.05.03"]
[EventType "tourn"]
[EventCountry "ESP"]
[SourceTitle "playchess.com"]
[Source "ChessBase"]
[SourceQuality "1"]
[TimeControl "5400+30"]

1. e4 {[%emt 0:00:00]} c5 {[%emt 0:04:37]} 2. Nf3 {[%emt 0:00:00]} d6 {[%emt 0:00:04]} 3. d4 {[%emt 0:00:00]} cxd4 {[%emt 0:00:04]} 4. Nxd4 {[%emt 0:00:00]} Nf6 {[%emt 0:00:05]} 5. Nc3 {[%emt 0:00:00]} a6 {[%emt 0:00:03]} 6. Bg5 {[%emt 0:00:05]} Nc6 {[%emt 0:00:20]} 7. Qd2 {[%emt 0:05:00]} e6 {[%emt 0:00:53]} 8. O-O-O {[%emt 0:00:13]} Bd7 {[%emt 0:00:45]} 9. Nxc6 {[%emt 0:01:00]} bxc6 {[%emt 0:04:57]} 10. e5 {[%emt 0:01:32]} dxe5 {[%emt 0:06:04]} 11. Bxf6 {[%emt 0:00:06]} gxf6 {[%emt 0:00:14]} 12. Ne4 {[%emt 0:00:33]} Be7 13. Qh6 {[%emt 0:02:43]} f5 {[%emt 0:09:25]} 14. Qg7 {[%emt 0:07:41]} Rf8 {[%emt 0:01:09]} 15. Nd6+ {[%emt 0:00:45]} Bxd6 {[%emt 0:00:14]} 16. Rxd6 {[%emt 0:00:04]} Ke7 {[%emt 0:12:01]} 17. Rd2 {[%emt 0:04:55]} Qc7 {[%emt 0:02:44]} 18. Qg5+ {[%emt 0:11:02]} f6 {[%emt 0:01:05]} 19. Qh6 {[%emt 0:00:08]} Be8 {[%emt 0:05:50]} 20. Be2 {[%emt 0:10:09]} Bf7 {[%emt 0:09:05]} 21. Rhd1 {[%emt 0:05:15]} Rad8 {[%emt 0:01:38]} 22. Rxd8 {[%emt 0:13:26]} Rxd8 {[%emt 0:00:23]} 23. Rxd8 {[%emt 0:00:10]} Qxd8 {[%emt 0:00:27]} 24. Qxh7 {[%emt 0:07:41]} Kf8 {[%emt 0:08:03]} 25. Qh8+ {[%emt 0:01:11]} Bg8 {[%emt 0:00:37]} 26. Qh6+ {[%emt 0:00:24]} Ke7 {[%emt 0:00:33]} 27. Qg7+ {[%emt 0:00:30]} Kd6 {[%emt 0:00:35]} 28. Qb7 {[%emt 0:02:52]} a5 {[%emt 0:03:06]} 29. c3 {[%emt 0:03:18]} e4 {[%emt 0:00:25]} 30. h4 {[%emt 0:05:36]} Qf8 {[%emt 0:02:00]} 31. g3 {[%emt 0:00:58]} e5 {[%emt 0:00:52]} 32. b3 {[%emt 0:00:33]} f4 {[%emt 0:01:51]} 33. Qb6 {[%emt 0:02:59]} fxg3 {[%emt 0:03:00]} 34. fxg3 {[%emt 0:00:09]} Be6 {[%emt 0:03:16]} 35. Qxa5 {[%emt 0:02:33]} Qh6+ {[%emt 0:03:23]} 36. Kd1 {[%emt 0:00:47]} Kd7 {[%emt 0:03:24]} 37. Qa7+ {[%emt 0:01:21]} Kd6 {[%emt 0:00:29]} 38. Qb8+ {[%emt 0:00:14]} Kd7 {[%emt 0:01:44]} 39. Qb7+ {[%emt 0:00:07]} Kd6 {[%emt 0:00:59]} 40. Qb4+ {[%emt 0:00:08]} Kd7 {[%emt 0:00:35]} 41. Qxe4 {[%emt 0:00:28]} Qf8 {[%emt 0:00:19]} 42. Qh7+ {[%emt 0:00:18]} Kd8 {[%emt 0:00:10]} 43. Qd3+ {[%emt 0:00:21]} Kc7 {[%emt 0:00:04]} 44. c4 {[%emt 0:01:39]} Qa3 {[%emt 0:00:30]} 45. Qd2 {[%emt 0:00:17]} Bf5 {[%emt 0:00:24]} 46. h5 {[%emt 0:07:39]} Qc5 {[%emt 0:00:22]} 47. Qc3 {[%emt 0:03:35]} Bh7 {[%emt 0:05:19]} 48. g4 {[%emt 0:00:53]} Be4 {[%emt 0:00:51]} 49. Kd2 {[%emt 0:00:14]} Bh7 {[%emt 0:01:09]} 50. b4 {[%emt 0:00:37]} Qa7 {[%emt 0:00:27]} 51. a3 {[%emt 0:00:08]} Qg1 {[%emt 0:00:36]} 52. b5 {[%emt 0:01:15]} e4 {[%emt 0:00:42]} 53. Qa5+ {[%emt 0:00:16]} Kd6 {[%emt 0:00:37]} 54. Qd8+ {[%emt 0:00:09]} Ke6 {[%emt 0:01:44]} 55. Qe8+ {[%emt 0:00:07]} Kd6 {[%emt 0:00:09]} 56. Qxc6+ {[%emt 0:00:06]} Ke5 {[%emt 0:00:07]} 57. Qc7+ {[%emt 0:00:12]} 1-0

[Event "XV Closed IM BCC 2021"]
[Site "Barcelona"]
[Date "2021.05.09"]
[Round "6.2"]
[White "Perez Mitjans, Orelvis"]
[Black "Hernandez, Cristian Andres"]
[Result "1/2-1/2"]
[ECO "B92"]
[WhiteElo "2412"]
[BlackElo "2357"]
[Annotator "NA"]
[PlyCount "127"]
[EventDate "2021.05.03"]
[EventType "tourn"]
[EventCountry "ESP"]
[SourceTitle "playchess.com"]
[Source "ChessBase"]
[SourceQuality "1"]
[TimeControl "5400+30"]

1. e4 {[%emt 0:05:10]} c5 {[%emt 0:00:00]} 2. Nf3 {[%emt 0:00:16]} d6 {[%emt 0:00:02]} 3. d4 {[%emt 0:00:44]} Nf6 {[%emt 0:00:11]} 4. Nc3 {[%emt 0:00:12]} cxd4 {[%emt 0:00:06]} 5. Nxd4 {[%emt 0:00:07]} a6 {[%emt 0:00:05]} 6. Be2 {[%emt 0:00:11]} e5 {[%emt 0:00:06]} 7. Nf3 {[%emt 0:00:47]} h6 {[%emt 0:00:07]} 8. O-O {[%emt 0:00:51]} Be7 {[%emt 0:00:28]} 9. Re1 {[%emt 0:02:21]} O-O {[%emt 0:00:32]} 10. Nd2 {[%emt 0:00:57]} b5 {[%emt 0:08:23]} 11. a4 {[%emt 0:01:27]} b4 {[%emt 0:00:28]} 12. Nd5 {[%emt 0:00:06]} Nxd5 {[%emt 0:00:23]} 13. exd5 {[%emt 0:00:04]} a5 {[%emt 0:05:26]} 14. Bb5 {[%emt 0:09:37]} Qc7 {[%emt 0:23:44]} 15. Nc4 {[%emt 0:34:19]} Bd7 {[%emt 0:02:25]} 16. b3 {[%emt 0:01:17]} Qb7 {[%emt 0:00:18]} 17. Bxd7 {[%emt 0:09:28]} Nxd7 {[%emt 0:00:06]} 18. f4 {[%emt 0:00:23]} Nb6 {[%emt 0:05:09]} 19. fxe5 {[%emt 0:00:58]} Nxc4 {[%emt 0:02:24]} 20. bxc4 {[%emt 0:00:05]} dxe5 {[%emt 0:00:04]} 21. Bb2 {[%emt 0:00:16]} f6 {[%emt 0:03:25]} 22. Kh1 {[%emt 0:00:25]} Bd6 {[%emt 0:02:05]} 23. Qd3 {[%emt 0:06:13]} Rac8 {[%emt 0:01:49]} 24. Re4 {[%emt 0:01:20]} Rc5 {[%emt 0:12:16]} 25. Rf1 {[%emt 0:02:43]} Qd7 {[%emt 0:12:50]} 26. g4 {[%emt 0:02:23]} Rfc8 {[%emt 0:01:16]} 27. Bc1 {[%emt 0:00:19]} Qc7 {[%emt 0:02:54]} 28. Be3 {[%emt 0:02:27]} Rxc4 {[%emt 0:05:57]} 29. Bb6 {[%emt 0:01:47]} Rc3 {[%emt 0:01:35]} 30. Bxc7 {[%emt 0:00:10]} Rxd3 {[%emt 0:00:02]} 31. cxd3 {[%emt 0:01:24]} Rxc7 {[%emt 0:00:04]} 32. Rc4 {[%emt 0:00:06]} Rxc4 {[%emt 0:00:03]} 33. dxc4 {[%emt 0:00:04]} Kf7 {[%emt 0:01:07]} 34. Kg2 {[%emt 0:00:43]} g6 {[%emt 0:00:16]} 35. Kf3 {[%emt 0:09:04]} f5 {[%emt 0:00:05]} 36. Ke2 {[%emt 0:00:32]} Kf6 {[%emt 0:00:18]} 37. gxf5 {[%emt 0:03:11]} gxf5 {[%emt 0:00:09]} 38. c5 {[%emt 0:04:30]} Bxc5 {[%emt 0:00:03]} 39. Rc1 {[%emt 0:00:02]} Bd4 {[%emt 0:00:54]} 40. Kd3 {[%emt 0:00:20]} Bc3 {[%emt 0:04:05]} 41. Kc4 {[%emt 0:00:16]} e4 {[%emt 0:04:28]} 42. Kc5 {[%emt 0:02:04]} f4 {[%emt 0:01:32]} 43. d6 {[%emt 0:01:05]} Kf5 {[%emt 0:00:50]} 44. d7 {[%emt 0:00:31]} Bf6 {[%emt 0:00:03]} 45. Kd5 {[%emt 0:00:29]} f3 {[%emt 0:00:49]} 46. Rc8 {[%emt 0:00:38]} f2 {[%emt 0:02:12]} 47. Rf8 {[%emt 0:00:06]} f1=Q {[%emt 0:00:06]} 48. Rxf6+ {[%emt 0:00:04]} Kxf6 {[%emt 0:00:05]} 49. d8=Q+ {[%emt 0:00:02]} Kg6 {[%emt 0:00:45]} 50. Qg8+ {[%emt 0:00:40]} Kh5 {[%emt 0:00:19]} 51. Qe8+ {[%emt 0:00:51]} Kg5 {[%emt 0:00:23]} 52. Qg8+ {[%emt 0:00:13]} Kh4 {[%emt 0:01:54]} 53. Qg3+ {[%emt 0:00:35]} Kh5 {[%emt 0:00:06]} 54. Qe5+ {[%emt 0:00:31]} Kg6 {[%emt 0:00:16]} 55. Qg3+ {[%emt 0:00:05]} Kh7 {[%emt 0:00:56]} 56. Qc7+ {[%emt 0:00:39]} Kg8 {[%emt 0:00:21]} 57. Qg3+ {[%emt 0:00:07]} Kf7 {[%emt 0:00:49]} 58. Qc7+ {[%emt 0:00:06]} Kf6 {[%emt 0:00:36]} 59. Qd6+ {[%emt 0:00:24]} Kg5 {[%emt 0:00:44]} 60. Qg3+ {[%emt 0:00:06]} Kf6 {[%emt 0:00:35]} 61. Qd6+ {[%emt 0:00:10]} Kf7 {[%emt 0:00:14]} 62. Qc7+ {[%emt 0:00:09]} Kg8 {[%emt 0:00:38]} 63. Qg3+ {[%emt 0:00:06]} Kf8 {[%emt 0:00:35]} 64. Qb8+ {[%emt 0:00:09]} 1/2-1/2

[Event "XV Closed IM BCC 2021"]
[Site "Barcelona"]
[Date "2021.05.09"]
[Round "6.3"]
[White "Girel, Joseph"]
[Black "Garcia Ramos, Daniel"]
[Result "1/2-1/2"]
[ECO "B12"]
[WhiteElo "2310"]
[BlackElo "2436"]
[Annotator "NA"]
[PlyCount "77"]
[EventDate "2021.05.03"]
[EventType "tourn"]
[EventCountry "ESP"]
[SourceTitle "playchess.com"]
[Source "ChessBase"]
[SourceQuality "1"]
[TimeControl "5400+30"]

1. e4 {[%emt 0:00:00]} c6 {[%emt 0:02:02]} 2. d4 {[%emt 0:00:00]} d5 {[%emt 0:00:04]} 3. e5 {[%emt 0:00:18]} Bf5 {[%emt 0:00:13]} 4. h4 {[%emt 0:00:30]} Qb6 {[%emt 0:00:23]} 5. Nc3 {[%emt 0:01:36]} h5 {[%emt 0:00:37]} 6. Nge2 {[%emt 0:07:20]} e6 7. Be3 {[%emt 0:12:11]} Nd7 {[%emt 0:08:16]} 8. Rb1 {[%emt 0:07:21]} c5 {[%emt 0:16:03]} 9. Qd2 {[%emt 0:02:48]} Nh6 {[%emt 0:10:46]} 10. Na4 {[%emt 0:11:58]} Qc7 {[%emt 0:08:02]} 11. Nxc5 {[%emt 0:01:16]} Bxc5 {[%emt 0:16:18]} 12. dxc5 {[%emt 0:00:11]} Ng4 {[%emt 0:00:20]} 13. Bd4 {[%emt 0:08:32]} O-O {[%emt 0:04:40]} 14. Ng3 {[%emt 0:07:59]} Bg6 {[%emt 0:06:48]} 15. Be2 {[%emt 0:03:17]} Ndxe5 {[%emt 0:03:20]} 16. O-O {[%emt 0:03:46]} Nc4 {[%emt 0:02:30]} 17. Bxc4 {[%emt 0:05:40]} dxc4 {[%emt 0:00:01]} 18. Rbe1 {[%emt 0:05:10]} e5 {[%emt 0:02:31]} 19. Bc3 {[%emt 0:00:09]} f6 {[%emt 0:10:07]} 20. Qd5+ {[%emt 0:00:40]} Bf7 {[%emt 0:00:26]} 21. Qd6 {[%emt 0:00:16]} Rac8 {[%emt 0:02:34]} 22. Nf5 {[%emt 0:01:20]} Kh7 {[%emt 0:01:47]} 23. f3 {[%emt 0:02:40]} Nh6 {[%emt 0:00:18]} 24. Nxh6 {[%emt 0:00:40]} Bg6 {[%emt 0:01:49]} 25. f4 {[%emt 0:04:00]} exf4 {[%emt 0:00:10]} 26. Re7 {[%emt 0:01:41]} Qxc5+ {[%emt 0:00:32]} 27. Qxc5 {[%emt 0:00:07]} Rxc5 {[%emt 0:00:01]} 28. Rxb7 {[%emt 0:01:03]} a5 {[%emt 0:00:18]} 29. Rxf4 {[%emt 0:02:44]} Kxh6 {[%emt 0:00:20]} 30. Ra7 {[%emt 0:00:51]} Bxc2 {[%emt 0:00:37]} 31. Bxa5 {[%emt 0:01:49]} Re8 {[%emt 0:02:44]} 32. Bc3 {[%emt 0:01:45]} Rd5 {[%emt 0:00:46]} 33. Rf2 {[%emt 0:01:44]} Bf5 {[%emt 0:00:34]} 34. Ra5 {[%emt 0:01:14]} Rd1+ {[%emt 0:00:23]} 35. Kh2 {[%emt 0:00:17]} Bd3 {[%emt 0:00:33]} 36. Rd5 {[%emt 0:01:24]} Re4 {[%emt 0:00:17]} 37. Rd4 {[%emt 0:00:01]} Rxd4 {[%emt 0:00:33]} 38. Bxd4 {[%emt 0:00:02]} Kg6 {[%emt 0:00:01]} 39. Bc3 {[%emt 0:00:21]} 1/2-1/2

[Event "XV Closed IM BCC 2021"]
[Site "Barcelona"]
[Date "2021.05.09"]
[Round "6.4"]
[White "Saya, Ethan"]
[Black "Alcala Gonzalez, Cesar"]
[Result "0-1"]
[ECO "B17"]
[WhiteElo "2230"]
[BlackElo "2110"]
[Annotator "NA"]
[PlyCount "64"]
[EventDate "2021.05.03"]
[EventType "tourn"]
[EventCountry "ESP"]
[SourceTitle "playchess.com"]
[Source "ChessBase"]
[SourceQuality "1"]
[TimeControl "5400+30"]

1. e4 c6 2. d4 d5 3. Nd2 dxe4 4. Nxe4 Nd7 5. Bc4 Ngf6 6. Nxf6+ Nxf6 7. c3 Qc7 8. h3 Bf5 9. Nf3 e6 10. Qe2 Bd6 11. O-O h6 12. Re1 O-O-O 13. Ne5 Kb8 14. a4 g5 15. Qf3 Nd5 16. Bxd5 cxd5 17. g4 Be4 18. Qe3 f6 19. Nf3 h5 20. Nd2 hxg4 21. Nxe4 Rxh3 22. Nxf6 Rxe3 23. Bxe3 Qf7 24. Bxg5 Be7 25. Bf4+ Kc8 26. Nxd5 exd5 27. Be5 Bh4 28. Re2 Rf8 29. Rf1 Qf3 30. Rd2 g3 31. Bd6 gxf2+ 32. Kh2 Bg3+ 0-1

[Event "XV Closed IM BCC 2021"]
[Site "Barcelona"]
[Date "2021.05.09"]
[Round "6.5"]
[White "Lucas, Arthur"]
[Black "Papadiamandis, Elliot"]
[Result "1/2-1/2"]
[ECO "D72"]
[WhiteElo "2310"]
[BlackElo "2292"]
[Annotator "NA"]
[PlyCount "83"]
[EventDate "2021.05.03"]
[EventType "tourn"]
[EventCountry "ESP"]
[SourceTitle "playchess.com"]
[Source "ChessBase"]
[SourceQuality "1"]
[TimeControl "5400+30"]

1. d4 {[%emt 0:01:52]} Nf6 {[%emt 0:00:00]} 2. c4 {[%emt 0:00:39]} g6 {[%emt 0:00:10]} 3. g3 {[%emt 0:00:05]} Bg7 {[%emt 0:01:05]} 4. Bg2 {[%emt 0:00:06]} d5 {[%emt 0:00:08]} 5. cxd5 {[%emt 0:00:07]} Nxd5 {[%emt 0:00:07]} 6. e4 {[%emt 0:00:07]} Nb6 {[%emt 0:00:15]} 7. Ne2 {[%emt 0:00:08]} O-O {[%emt 0:04:35]} 8. O-O {[%emt 0:00:09]} c5 {[%emt 0:02:51]} 9. dxc5 {[%emt 0:00:17]} N6d7 10. Nbc3 {[%emt 0:15:11]} Nxc5 {[%emt 0:14:20]} 11. Be3 {[%emt 0:00:29]} Ncd7 {[%emt 0:08:01]} 12. Qb3 {[%emt 0:12:00]} Nc6 {[%emt 0:06:39]} 13. Rfd1 {[%emt 0:05:20]} Qa5 {[%emt 0:07:07]} 14. Rd5 {[%emt 0:12:04]} Qc7 {[%emt 0:01:15]} 15. Rad1 {[%emt 0:12:54]} a6 {[%emt 0:14:00]} 16. Bf4 {[%emt 0:11:28]} Nde5 {[%emt 0:02:58]} 17. Rc5 {[%emt 0:01:46]} e6 {[%emt 0:00:47]} 18. Qc2 {[%emt 0:18:26]} Bd7 {[%emt 0:09:48]} 19. Nd5 {[%emt 0:02:32]} exd5 {[%emt 0:00:45]} 20. exd5 {[%emt 0:00:05]} Bf5 {[%emt 0:01:50]} 21. Qc1 {[%emt 0:03:28]} Qe7 {[%emt 0:08:10]} 22. dxc6 {[%emt 0:00:08]} Nxc6 {[%emt 0:00:21]} 23. Be3 {[%emt 0:01:36]} Bg4 {[%emt 0:03:18]} 24. Rd2 {[%emt 0:00:31]} Ne5 {[%emt 0:03:53]} 25. Nd4 {[%emt 0:00:27]} Rac8 {[%emt 0:00:31]} 26. Rxc8 {[%emt 0:00:31]} Rxc8 {[%emt 0:00:01]} 27. Rc2 {[%emt 0:00:13]} Rd8 {[%emt 0:02:25]} 28. Rd2 {[%emt 0:00:45]} Rc8 {[%emt 0:02:46]} 29. Rc2 {[%emt 0:00:01]} Rd8 {[%emt 0:00:50]} 30. Rd2 {[%emt 0:00:33]} Qb4 {[%emt 0:01:50]} 31. Nc2 {[%emt 0:01:00]} Qa5 {[%emt 0:00:05]} 32. Rxd8+ {[%emt 0:00:29]} Qxd8 {[%emt 0:00:01]} 33. Ne1 {[%emt 0:00:31]} b5 {[%emt 0:00:39]} 34. h3 {[%emt 0:00:15]} Be6 {[%emt 0:00:41]} 35. b3 {[%emt 0:00:08]} h5 {[%emt 0:00:29]} 36. Kh2 {[%emt 0:01:06]} Qd6 {[%emt 0:00:36]} 37. Bf4 {[%emt 0:00:31]} Qd4 {[%emt 0:00:31]} 38. Be3 {[%emt 0:00:19]} Qd6 {[%emt 0:00:59]} 39. Bf4 {[%emt 0:00:10]} Qd4 {[%emt 0:00:58]} 40. Be3 {[%emt 0:00:05]} Qd6 {[%emt 0:01:01]} 41. Bf4 {[%emt 0:00:26]} Qd4 {[%emt 0:01:02]} 42. Be3 {[%emt 0:01:21]} 1/2-1/2

[Event "XV Closed IM BCC 2021"]
[Site "Barcelona"]
[Date "2021.05.10"]
[Round "7.2"]
[White "Alcala Gonzalez, Cesar"]
[Black "Lucas, Arthur"]
[Result "0-1"]
[ECO "E81"]
[WhiteElo "2110"]
[BlackElo "2310"]
[Annotator "NA"]
[PlyCount "89"]
[EventDate "2021.05.03"]
[EventType "tourn"]
[EventCountry "ESP"]
[SourceTitle "playchess.com"]
[Source "ChessBase"]
[SourceQuality "1"]
[TimeControl "5400+30"]

1. d4 {[%emt 0:00:00]} Nf6 {[%emt 0:02:07]} 2. c4 {[%emt 0:00:00]} g6 {[%emt 0:00:05]} 3. Nc3 {[%emt 0:00:00]} Bg7 {[%emt 0:00:04]} 4. e4 {[%emt 0:00:00]} d6 {[%emt 0:00:04]} 5. f3 {[%emt 0:00:15]} O-O {[%emt 0:00:24]} 6. Be3 {[%emt 0:00:28]} a6 {[%emt 0:00:06]} 7. Qd2 {[%emt 0:00:16]} Nbd7 {[%emt 0:00:13]} 8. Bd3 {[%emt 0:00:27]} c6 {[%emt 0:00:24]} 9. a4 {[%emt 0:00:07]} e5 {[%emt 0:00:31]} 10. d5 {[%emt 0:00:44]} cxd5 {[%emt 0:01:45]} 11. cxd5 {[%emt 0:00:08]} Nh5 {[%emt 0:00:05]} 12. Nge2 {[%emt 0:08:25]} f5 {[%emt 0:03:47]} 13. exf5 {[%emt 0:01:16]} Nf4 {[%emt 0:04:33]} 14. Bxf4 {[%emt 0:22:09]} exf4 {[%emt 0:00:06]} 15. fxg6 {[%emt 0:00:51]} Qh4+ {[%emt 0:13:47]} 16. Kd1 {[%emt 0:09:04]} Ne5 {[%emt 0:11:30]} 17. gxh7+ {[%emt 0:01:57]} Kh8 {[%emt 0:00:12]} 18. Ne4 {[%emt 0:03:59]} Bf5 {[%emt 0:12:09]} 19. Nd4 {[%emt 0:16:37]} Nxd3 {[%emt 0:03:36]} 20. Nxf5 {[%emt 0:06:06]} Rxf5 {[%emt 0:07:48]} 21. Qxd3 {[%emt 0:00:20]} Qh5 {[%emt 0:00:56]} 22. g4 {[%emt 0:11:40]} Rxd5 {[%emt 0:09:24]} 23. gxh5 {[%emt 0:00:08]} Rxd3+ {[%emt 0:00:04]} 24. Ke2 {[%emt 0:05:41]} Re3+ {[%emt 0:06:39]} 25. Kd2 {[%emt 0:01:02]} Rxf3 {[%emt 0:04:37]} 26. Ra3 {[%emt 0:00:57]} Rxa3 {[%emt 0:02:04]} 27. bxa3 {[%emt 0:00:01]} Kxh7 {[%emt 0:03:56]} 28. Ng5+ {[%emt 0:03:44]} Kh6 {[%emt 0:00:48]} 29. Ne6 {[%emt 0:00:12]} Be5 {[%emt 0:01:11]} 30. Rf1 {[%emt 0:01:02]} Rc8 {[%emt 0:07:53]} 31. Nxf4 {[%emt 0:02:08]} Rc4 {[%emt 0:00:37]} 32. Ng6 {[%emt 0:00:40]} Bxh2 {[%emt 0:01:36]} 33. Rh1 {[%emt 0:01:42]} Bg3 {[%emt 0:01:45]} 34. Rh3 {[%emt 0:00:12]} Bf2 {[%emt 0:00:38]} 35. Ne7 {[%emt 0:00:21]} Rxa4 {[%emt 0:01:06]} 36. Nf5+ {[%emt 0:01:02]} Kg5 {[%emt 0:00:54]} 37. Nxd6 {[%emt 0:00:55]} Rd4+ {[%emt 0:00:33]} 38. Ke2 {[%emt 0:00:09]} Rxd6 {[%emt 0:00:31]} 39. Kxf2 {[%emt 0:00:01]} Kg4 {[%emt 0:00:29]} 40. Rh1 {[%emt 0:01:01]} Rh6 {[%emt 0:00:18]} 41. Ke3 {[%emt 0:00:16]} b5 {[%emt 0:00:41]} 42. Kd4 {[%emt 0:00:29]} a5 {[%emt 0:00:29]} 43. Kc5 {[%emt 0:00:19]} b4 {[%emt 0:00:04]} 44. axb4 {[%emt 0:00:07]} axb4 {[%emt 0:00:03]} 45. Kxb4 {[%emt 0:00:06]} 0-1

[Event "XV Closed IM BCC 2021"]
[Site "Barcelona"]
[Date "2021.05.10"]
[Round "7.3"]
[White "Garcia Ramos, Daniel"]
[Black "Saya, Ethan"]
[Result "1/2-1/2"]
[ECO "C11"]
[WhiteElo "2436"]
[BlackElo "2230"]
[Annotator "NA"]
[PlyCount "118"]
[EventDate "2021.05.03"]
[EventType "tourn"]
[EventCountry "ESP"]
[SourceTitle "playchess.com"]
[Source "ChessBase"]
[SourceQuality "1"]
[TimeControl "5400+30"]

1. e4 {[%emt 0:00:00]} e6 {[%emt 0:00:55]} 2. d4 {[%emt 0:00:00]} d5 {[%emt 0:00:04]} 3. Nc3 {[%emt 0:00:00]} Nf6 {[%emt 0:00:22]} 4. e5 {[%emt 0:00:00]} Nfd7 {[%emt 0:00:07]} 5. f4 {[%emt 0:00:08]} c5 {[%emt 0:00:05]} 6. Nf3 {[%emt 0:00:07]} Nc6 {[%emt 0:00:08]} 7. Be3 {[%emt 0:00:10]} Be7 {[%emt 0:02:55]} 8. Qd2 {[%emt 0:00:41]} a6 {[%emt 0:02:52]} 9. Be2 {[%emt 0:02:23]} b5 {[%emt 0:01:33]} 10. O-O {[%emt 0:00:49]} Qb6 {[%emt 0:02:38]} 11. Rad1 {[%emt 0:17:47]} Bb7 {[%emt 0:09:37]} 12. Kh1 {[%emt 0:03:55]} O-O-O {[%emt 0:02:02]} 13. dxc5 {[%emt 0:06:20]} Bxc5 {[%emt 0:02:15]} 14. Bxc5 {[%emt 0:04:14]} Nxc5 {[%emt 0:01:37]} 15. Bd3 {[%emt 0:09:04]} h6 {[%emt 0:09:26]} 16. Qf2 {[%emt 0:02:50]} Kc7 {[%emt 0:01:51]} 17. a3 {[%emt 0:06:18]} Nxd3 {[%emt 0:02:23]} 18. Rxd3 {[%emt 0:02:06]} Qxf2 {[%emt 0:00:57]} 19. Rxf2 {[%emt 0:00:01]} g6 {[%emt 0:01:32]} 20. Kg1 {[%emt 0:07:02]} Kb6 {[%emt 0:06:46]} 21. Ne2 {[%emt 0:10:43]} a5 {[%emt 0:02:26]} 22. Ned4 {[%emt 0:05:58]} Na7 {[%emt 0:03:48]} 23. g4 {[%emt 0:00:45]} Rdg8 {[%emt 0:05:03]} 24. Kf1 {[%emt 0:03:21]} Ba6 {[%emt 0:06:42]} 25. Ke1 {[%emt 0:00:28]} b4 {[%emt 0:02:52]} 26. Re3 {[%emt 0:00:02]} Nb5 {[%emt 0:01:09]} 27. axb4 {[%emt 0:05:25]} axb4 {[%emt 0:00:23]} 28. Kd2 {[%emt 0:00:21]} h5 {[%emt 0:10:06]} 29. Nxb5 {[%emt 0:01:46]} Bxb5 {[%emt 0:00:22]} 30. h3 {[%emt 0:04:36]} hxg4 {[%emt 0:00:11]} 31. hxg4 {[%emt 0:00:01]} Rh1 {[%emt 0:01:53]} 32. Ng5 {[%emt 0:02:08]} Ra8 {[%emt 0:02:54]} 33. Re1 {[%emt 0:03:39]} Rh4 {[%emt 0:00:20]} 34. Rg1 {[%emt 0:01:16]} Ra2 {[%emt 0:02:43]} 35. b3 {[%emt 0:00:46]} d4 {[%emt 0:00:01]} 36. Rfg2 {[%emt 0:02:09]} d3 {[%emt 0:03:30]} 37. Rc1 {[%emt 0:00:08]} Bc6 {[%emt 0:00:54]} 38. Rf2 {[%emt 0:00:29]} dxc2 {[%emt 0:00:46]} 39. Rxc2 {[%emt 0:00:28]} Rxc2+ {[%emt 0:00:13]} 40. Kxc2 {[%emt 0:00:01]} Rxg4 {[%emt 0:00:15]} 41. Kd3 {[%emt 0:01:32]} Bd5 {[%emt 0:01:42]} 42. Nxf7 {[%emt 0:00:26]} Rg3+ {[%emt 0:00:58]} 43. Kd4 {[%emt 0:00:18]} Rxb3 {[%emt 0:00:18]} 44. Nd6 {[%emt 0:00:17]} Rb1 {[%emt 0:01:11]} 45. Nc4+ {[%emt 0:00:41]} Kb5 {[%emt 0:05:04]} 46. Ne3 {[%emt 0:00:07]} Bc6 {[%emt 0:02:33]} 47. Rc2 {[%emt 0:00:11]} Bh1 {[%emt 0:02:04]} 48. Rc8 {[%emt 0:00:35]} b3 {[%emt 0:00:50]} 49. Rb8+ {[%emt 0:00:04]} Kc6 {[%emt 0:00:15]} 50. Kc3 {[%emt 0:01:48]} Kc5 {[%emt 0:01:58]} 51. Re8 {[%emt 0:00:33]} b2 {[%emt 0:01:01]} 52. Nc2 {[%emt 0:00:30]} Kd5 {[%emt 0:00:38]} 53. Nb4+ {[%emt 0:00:30]} Ke4 {[%emt 0:00:50]} 54. Rxe6 {[%emt 0:00:05]} Kxf4 {[%emt 0:00:22]} 55. Rxg6 {[%emt 0:00:42]} Be4 {[%emt 0:00:26]} 56. Rf6+ {[%emt 0:00:35]} Kxe5 {[%emt 0:00:23]} 57. Rf2 {[%emt 0:00:06]} Rc1+ {[%emt 0:00:36]} 58. Kxb2 {[%emt 0:00:06]} Rg1 {[%emt 0:00:14]} 59. Kc3 {[%emt 0:00:13]} Rg3+ {[%emt 0:00:14]} 1/2-1/2